fUSD/lending_fUSD_20260511
["ID","MTS","AMOUNT","RATE_DAILY","PERIOD"]
[422021711,1778477455000,-507.0,0.00033243,11]
[422021712,1778477455000,-975.09907834,0.0003325,2]
[422021721,1778477455000,-158.0,0.00033509,30]
[422021723,1778477455000,-12027.01106154,0.00033853,2]
[422021725,1778477455000,-287.29122816,0.000339,120]
[422021724,1778477455000,-442.93,0.00033865,30]
[422021722,1778477455000,-267.0,0.00033526,30]
[422021726,1778477455000,-277.49113174,0.000339,120]
[422021706,1778477455000,-1830.48084473,0.00033176,53]
[422021718,1778477455000,-154.0,0.00033509,30]
[422021699,1778477455000,-182.92285388,0.00033,120]
[422021727,1778477455000,-212.21192677,0.000339,120]
[422021705,1778477455000,-35195.66259826,0.00033155,2]
[422021671,1778477455000,-1700.0,0.00032897,60]
[422021672,1778477455000,-1700.0,0.00032897,60]
[422021684,1778477455000,-1700.0,0.00032897,60]
[422021674,1778477455000,-1700.0,0.00032897,60]
[422021673,1778477455000,-1700.0,0.00032897,60]
[422021685,1778477455000,-3262.1945498,0.00032897,60]
[422021677,1778477455000,-1700.0,0.00032897,60]
[422021676,1778477455000,-1700.0,0.00032897,60]
[422021675,1778477455000,-1700.0,0.00032897,60]
[422021681,1778477455000,-1700.0,0.00032897,60]
[422021678,1778477455000,-1700.0,0.00032897,60]
[422021680,1778477455000,-1700.0,0.00032897,60]
[422021700,1778477455000,-180.08984041,0.00033,120]
[422021682,1778477455000,-1700.0,0.00032897,60]
[422021683,1778477455000,-1700.0,0.00032897,60]
[422021687,1778477455000,-404.0,0.00032899,2]
[422021690,1778477455000,-250.0,0.00032999,2]
[422021693,1778477455000,-287.29122816,0.00033,120]
[422021686,1778477455000,-416.0,0.00032899,2]
[422021688,1778477455000,-2506.878223,0.000329,11]
[422021694,1778477455000,-277.49113174,0.00033,120]
[422021689,1778477455000,-200.0,0.000329,7]
[422021692,1778477455000,-213.0,0.00032999,2]
[422021695,1778477455000,-570.935201,0.00033,14]
[422021691,1778477455000,-250.0,0.00032999,2]
[422021696,1778477455000,-1001.58,0.00033,120]
[422021679,1778477455000,-1700.0,0.00032897,60]
[422021729,1778477455000,-180.08984041,0.000339,120]
[422021728,1778477455000,-182.92285388,0.000339,120]
[422021781,1778477455000,-160.0,0.000352,26]
[422021762,1778477455000,-456.72924355,0.000349,2]
[422021764,1778477455000,-500.0,0.0003497,2]
[422021763,1778477455000,-700.0,0.0003497,2]
[422021765,1778477455000,-900.0,0.00035,60]
[422021766,1778477455000,-74282.65901398,0.00035,120]
[422021768,1778477455000,-287.29122816,0.00035,120]
[422021779,1778477455000,-200000.0,0.00035,2]
[422021778,1778477455000,-425.28726482,0.00035,2]
[422021767,1778477455000,-279.09933308,0.00035,120]
[422021770,1778477455000,-500.0,0.00035,60]
[422021769,1778477455000,-277.49113174,0.00035,120]
[422021776,1778477455000,-424.02114787,0.00035,2]
[422021759,1778477455000,-150.0,0.000349,2]
[422021774,1778477455000,-212.21192677,0.00035,120]
[422021777,1778477455000,-425.28726482,0.00035,2]
[422021773,1778477455000,-659.78428169,0.00035,2]
[422021775,1778477455000,-160.0,0.00035,120]
[422021780,1778477455000,-1500.0,0.000352,7]
[422021783,1778477455000,-160.0,0.000352,26]
[422021782,1778477455000,-160.0,0.000352,26]
[422021785,1778477455000,-1223.0,0.00035375,2]
[422021784,1778477455000,-152.0,0.00035283,6]
[422021787,1778477455000,-167.0,0.00035509,30]
[422021786,1778477455000,-154.0,0.00035509,30]
[422021788,1778477455000,-497.0,0.00035509,30]
[422021730,1778477455000,-158.0,0.00034,2]
[422021772,1778477455000,-79430.00670831,0.00035,60]
[422021760,1778477455000,-2641.56098905,0.000349,2]
[422021771,1778477455000,-8704.81014634,0.00035,2]
[422021754,1778477455000,-163.71841409,0.00034705,60]
[422021761,1778477455000,-150.0,0.000349,2]
[422021732,1778477455000,-650.0,0.00034104,2]
[422021734,1778477455000,-900.0,0.00034178,60]
[422021733,1778477455000,-557.0,0.00034104,2]
[422021736,1778477455000,-160.0,0.000342,21]
[422021744,1778477455000,-167.0,0.00034509,30]
[422021739,1778477455000,-286.5,0.00034212,120]
[422021735,1778477455000,-775.9,0.00034182,7]
[422021745,1778477455000,-497.0,0.00034509,30]
[422021737,1778477455000,-160.0,0.000342,21]
[422021738,1778477455000,-160.0,0.000342,21]
[422021746,1778477455000,-158.0,0.00034509,30]
[422021742,1778477455000,-507.0,0.00034507,12]
[422021741,1778477455000,-1114.78,0.000345,120]
[422021731,1778477455000,-650.0,0.00034104,2]
[422021757,1778477455000,-150.0,0.000349,2]
[422021743,1778477455000,-154.0,0.00034509,30]
[422021753,1778477455000,-400.60375703,0.00034705,60]
[422021752,1778477455000,-1796.25,0.00034692,2]
[422021751,1778477455000,-5000.0,0.00034614,30]
[422021750,1778477455000,-5000.0,0.00034614,30]
[422021748,1778477455000,-4239.07,0.00034544,60]
[422021747,1778477455000,-267.0,0.00034526,30]
[422021749,1778477455000,-511.22505028,0.000346,5]
[422021740,1778477455000,-150.0,0.00034267,2]
[422021756,1778477455000,-196.49008372,0.000349,2]
[422021758,1778477455000,-899.66399125,0.000349,2]
[422021755,1778477455000,-524.58095825,0.0003488,120]
[422021824,1778477456000,-11817.94022245,0.00036,2]
[422021841,1778477456000,-3403.74400253,0.00036222,2]
[422021822,1778477456000,-156.36,0.00035983,120]
[422021840,1778477456000,-160.0,0.000362,31]
[422021830,1778477456000,-321.559999,0.00036,14]
[422021828,1778477456000,-515.4,0.00036,30]
[422021819,1778477456000,-290.73,0.00035858,2]
[422021829,1778477456000,-277.9,0.00036,30]
[422021823,1778477456000,-2500.0,0.00036,5]
[422021825,1778477456000,-185.06256196,0.00036,120]
[422021826,1778477456000,-287.29122816,0.00036,120]
[422021834,1778477456000,-15650.44,0.00036088,10]
[422021827,1778477456000,-277.49113174,0.00036,120]
[422021831,1778477456000,-212.21192677,0.00036,120]
[422021837,1778477456000,-183.72499985,0.000362,2]
[422021839,1778477456000,-160.0,0.000362,31]
[422021833,1778477456000,-353.64456661,0.00036006,14]
[422021832,1778477456000,-177.0,0.00036,30]
[422021838,1778477456000,-160.0,0.000362,31]
[422021835,1778477456000,-775.9,0.00036153,30]
[422021843,1778477456000,-220.41,0.00036362,60]
[422021853,1778477456000,-45974.8,0.000366,7]
[422021842,1778477456000,-21381.0,0.00036295,2]
[422021845,1778477456000,-1043.39,0.0003638,10]
[422021844,1778477456000,-187.29,0.00036362,60]
[422021848,1778477456000,-164.6208549,0.00036509,30]
[422021849,1778477456000,-167.0,0.00036509,30]
[422021836,1778477456000,-46023.39,0.000362,7]
[422021820,1778477456000,-457.91425124,0.00035861,2]
[422021791,1778477456000,-43578.3682957,0.000356,6]
[422021818,1778477456000,-900.0,0.00035822,60]
[422021851,1778477456000,-158.0,0.00036509,30]
[422021789,1778477456000,-158.0,0.00035509,30]
[422021790,1778477456000,-267.0,0.00035526,30]
[422021792,1778477456000,-1054.46,0.000356,7]
[422021794,1778477456000,-151.55982146,0.00035616,60]
[422021799,1778477456000,-368.347912,0.00035616,7]
[422021800,1778477456000,-368.347912,0.00035616,7]
[422021798,1778477456000,-368.347912,0.00035616,7]
[422021802,1778477456000,-368.347912,0.00035616,7]
[422021795,1778477456000,-156.19079408,0.00035616,7]
[422021801,1778477456000,-368.347912,0.00035616,7]
[422021796,1778477456000,-500.0,0.00035616,5]
[422021797,1778477456000,-368.347912,0.00035616,7]
[422021821,1778477456000,-487.45765026,0.000359,30]
[422021793,1778477456000,-1476.14135509,0.00035609,2]
[422021803,1778477456000,-368.347912,0.00035616,7]
[422021805,1778477456000,-368.347912,0.00035616,7]
[422021817,1778477456000,-507.0,0.00035771,13]
[422021814,1778477456000,-368.347912,0.00035616,7]
[422021806,1778477456000,-368.347912,0.00035616,7]
[422021811,1778477456000,-368.347912,0.00035616,7]
[422021815,1778477456000,-368.347912,0.00035616,7]
[422021816,1778477456000,-368.347911,0.00035616,7]
[422021809,1778477456000,-368.347912,0.00035616,7]
[422021813,1778477456000,-368.347912,0.00035616,7]
[422021808,1778477456000,-368.347912,0.00035616,7]
[422021812,1778477456000,-368.347912,0.00035616,7]
[422021810,1778477456000,-368.347912,0.00035616,7]
[422021804,1778477456000,-368.347912,0.00035616,7]
[422021847,1778477456000,-1114.78,0.000365,120]
[422021807,1778477456000,-368.347912,0.00035616,7]
[422021850,1778477456000,-497.0,0.00036509,30]
[422021884,1778477456000,-383.12806342,0.00036979,2]
[422021888,1778477456000,-366.27669469,0.00036979,2]
[422021881,1778477456000,-602.38393434,0.00036979,2]
[422021889,1778477456000,-1146.02256466,0.00036979,2]
[422021883,1778477456000,-968.07396864,0.00036979,2]
[422021886,1778477456000,-769.33604301,0.00036979,2]
[422021887,1778477456000,-309.51866284,0.00036979,2]
[422021893,1778477456000,-483.59861358,0.00036979,2]
[422021894,1778477456000,-309.51866284,0.00036979,2]
[422021896,1778477456000,-660.86433468,0.00036979,2]
[422021911,1778477456000,-492.19455268,0.00036979,2]
[422021904,1778477456000,-306.37486008,0.00036979,2]
[422021895,1778477456000,-1093.63973599,0.00036979,2]
[422021890,1778477456000,-309.2779459,0.00036979,2]
[422021897,1778477456000,-713.02777268,0.00036979,2]
[422021900,1778477456000,-863.58946345,0.00036979,2]
[422021898,1778477456000,-762.89450124,0.00036979,2]
[422021902,1778477456000,-463.38560569,0.00036979,2]
[422021899,1778477456000,-412.62486912,0.00036979,2]
[422021903,1778477456000,-576.59432603,0.00036979,2]
[422021906,1778477456000,-412.92453588,0.00036979,2]
[422021910,1778477456000,-300.000001,0.00036979,2]
[422021909,1778477456000,-301.24498047,0.00036979,2]
[422021907,1778477456000,-300.0,0.00036979,2]
[422021905,1778477456000,-483.59861358,0.00036979,2]
[422021912,1778477456000,-603.85506578,0.00036979,2]
[422021908,1778477456000,-1093.63973599,0.00036979,2]
[422021846,1778477456000,-638.46680838,0.000365,2]
[422021901,1778477456000,-310.58625824,0.00036979,2]
[422021885,1778477456000,-359.89739169,0.00036979,2]
[422021913,1778477456000,-892.50225283,0.00036979,2]
[422021892,1778477456000,-463.38560569,0.00036979,2]
[422021855,1778477456000,-850.0,0.000366,2]
[422021865,1778477456000,-250.0,0.00036917,7]
[422021867,1778477456000,-863.58946345,0.00036979,2]
[422021866,1778477456000,-353.0,0.00036953,14]
[422021854,1778477456000,-850.0,0.000366,2]
[422021864,1778477456000,-281.27,0.000368,30]
[422021858,1778477456000,-500.0,0.00036644,60]
[422021863,1778477456000,-523.31,0.000368,30]
[422021891,1778477456000,-310.58625824,0.00036979,2]
[422021862,1778477456000,-1103.01877864,0.00036712,5]
[422021861,1778477456000,-152.94,0.00036712,60]
[422021857,1778477456000,-900.0,0.00036644,60]
[422021859,1778477456000,-1281.54,0.00036687,10]
[422021860,1778477456000,-2894.02,0.000367,14]
[422021856,1778477456000,-702.0,0.000366,2]
[422021872,1778477456000,-645.15452052,0.00036979,2]
[422021882,1778477456000,-603.85506578,0.00036979,2]
[422021868,1778477456000,-310.58625824,0.00036979,2]
[422021877,1778477456000,-383.12806342,0.00036979,2]
[422021875,1778477456000,-1190.87478089,0.00036979,2]
[422021876,1778477456000,-791.61293755,0.00036979,2]
[422021874,1778477456000,-603.85506578,0.00036979,2]
[422021852,1778477456000,-267.0,0.00036526,30]
[422021873,1778477456000,-1093.63973599,0.00036979,2]
[422021880,1778477456000,-576.59432604,0.00036979,2]
[422021871,1778477456000,-451.46014752,0.00036979,2]
[422021870,1778477456000,-576.59432604,0.00036979,2]
[422021879,1778477456000,-414.42989407,0.00036979,2]
[422021869,1778477456000,-463.38560569,0.00036979,2]
[422021878,1778477456000,-460.17653027,0.00036979,2]
[422021959,1778477457000,-709.29502969,0.00036979,2]
[422021962,1778477457000,-300.26547527,0.00036979,2]
[422021954,1778477457000,-309.51866284,0.00036979,2]
[422021947,1778477457000,-1065.85133357,0.00036979,2]
[422021951,1778477457000,-526.36126599,0.00036979,2]
[422021952,1778477457000,-1146.02256466,0.00036979,2]
[422021949,1778477457000,-521.10879165,0.00036979,2]
[422021948,1778477457000,-301.48155124,0.00036979,2]
[422021946,1778477457000,-603.85506579,0.00036979,2]
[422021950,1778477457000,-300.26547527,0.00036979,2]
[422021940,1778477457000,-721.78766895,0.00036979,2]
[422021966,1778477457000,-1145.98254532,0.00036979,2]
[422021955,1778477457000,-300.0,0.00036979,2]
[422021956,1778477457000,-1093.57565764,0.00036979,2]
[422021963,1778477457000,-369.81331535,0.00036979,2]
[422021960,1778477457000,-892.47111796,0.00036979,2]
[422021961,1778477457000,-725.31429466,0.00036979,2]
[422021958,1778477457000,-527.2192813,0.00036979,2]
[422021957,1778477457000,-300.0,0.00036979,2]
[422021965,1778477457000,-526.36126599,0.00036979,2]
[422021973,1778477457000,-343.63244301,0.00036979,2]
[422021974,1778477457000,-526.36126599,0.00036979,2]
[422021964,1778477457000,-343.63244301,0.00036979,2]
[422021975,1778477457000,-300.0,0.00036979,2]
[422021938,1778477457000,-309.26886467,0.00036979,2]
[422021953,1778477457000,-483.58541472,0.00036979,2]
[422021935,1778477457000,-725.34798474,0.00036979,2]
[422021930,1778477457000,-463.38560569,0.00036979,2]
[422021941,1778477457000,-451.46014751,0.00036979,2]
[422021968,1778477457000,-309.51866284,0.00036979,2]
[422021916,1778477457000,-300.0,0.00036979,2]
[422021918,1778477457000,-451.46014752,0.00036979,2]
[422021915,1778477457000,-301.4896953,0.00036979,2]
[422021919,1778477457000,-590.67564567,0.00036979,2]
[422021914,1778477457000,-725.34798474,0.00036979,2]
[422021917,1778477457000,-863.58946345,0.00036979,2]
[422021920,1778477457000,-656.73130099,0.00036979,2]
[422021924,1778477457000,-402.21429433,0.00036979,2]
[422021923,1778477457000,-725.34798474,0.00036979,2]
[422021922,1778477457000,-892.50225282,0.00036979,2]
[422021928,1778477457000,-300.0,0.00036979,2]
[422021926,1778477457000,-451.46014752,0.00036979,2]
[422021931,1778477457000,-576.57419241,0.00036979,2]
[422021927,1778477457000,-598.10714269,0.00036979,2]
[422021925,1778477457000,-300.0,0.00036979,2]
[422021921,1778477457000,-805.73818059,0.00036979,2]
[422021932,1778477457000,-300.0,0.00036979,2]
[422021929,1778477457000,-309.2779459,0.00036979,2]
[422021934,1778477457000,-1065.85133357,0.00036979,2]
[422021943,1778477457000,-300.0,0.00036979,2]
[422021942,1778477457000,-483.59861358,0.00036979,2]
[422021945,1778477457000,-492.17769922,0.00036979,2]
[422021944,1778477457000,-1093.63973599,0.00036979,2]
[422021933,1778477457000,-492.19455268,0.00036979,2]
[422021937,1778477457000,-300.26547527,0.00036979,2]
[422021939,1778477457000,-863.58946345,0.00036979,2]
[422021936,1778477457000,-301.4896953,0.00036979,2]
[422021969,1778477457000,-356.40924907,0.00036979,2]
[422021990,1778477457000,-1700.0,0.00036987,120]
[422021967,1778477457000,-300.0,0.00036979,2]
[422022010,1778477457000,-1700.0,0.00036987,120]
[422022009,1778477457000,-1700.0,0.00036987,120]
[422022006,1778477457000,-1700.0,0.00036987,120]
[422022003,1778477457000,-1700.0,0.00036987,120]
[422022007,1778477457000,-1700.0,0.00036987,120]
[422022005,1778477457000,-1700.0,0.00036987,120]
[422022012,1778477457000,-1700.0,0.00036987,120]
[422022013,1778477457000,-1700.0,0.00036987,120]
[422022014,1778477457000,-1700.0,0.00036987,120]
[422022016,1778477457000,-200.0,0.00037,15]
[422022025,1778477457000,-160.0,0.000372,36]
[422021970,1778477457000,-527.2192813,0.00036979,2]
[422022011,1778477457000,-1700.0,0.00036987,120]
[422022018,1778477457000,-250.0,0.00037108,2]
[422022021,1778477457000,-300.0,0.0003711,2]
[422022019,1778477457000,-250.0,0.00037108,2]
[422022020,1778477457000,-213.0,0.00037108,2]
[422022023,1778477457000,-261.0,0.0003711,2]
[422022022,1778477457000,-300.0,0.0003711,2]
[422022024,1778477457000,-43253.69,0.000372,7]
[422022026,1778477457000,-160.0,0.000372,36]
[422022027,1778477457000,-160.0,0.000372,36]
[422022031,1778477457000,-150.0,0.000375,120]
[422022030,1778477457000,-178.0,0.00037397,30]
[422022028,1778477457000,-1352.54,0.000373,120]
[422022029,1778477457000,-426.25,0.000373,120]
[422022017,1778477457000,-507.0,0.00037034,15]
[422022004,1778477457000,-1700.0,0.00036987,120]
[422022015,1778477457000,-3262.1945497,0.00036987,120]
[422022002,1778477457000,-1700.0,0.00036987,120]
[422022008,1778477457000,-1700.0,0.00036987,120]
[422021971,1778477457000,-853.32651933,0.00036979,2]
[422021972,1778477457000,-1794.48916065,0.00036979,2]
[422021976,1778477457000,-309.51003375,0.00036979,2]
[422021978,1778477457000,-853.32651933,0.00036979,2]
[422021980,1778477457000,-343.63244301,0.00036979,2]
[422021979,1778477457000,-1794.32142808,0.00036979,2]
[422021977,1778477457000,-569.83601733,0.00036979,2]
[422021988,1778477457000,-1700.0,0.00036987,120]
[422021987,1778477457000,-163.7729959,0.00036987,120]
[422021981,1778477457000,-526.36126599,0.00036979,2]
[422021982,1778477457000,-359.28990628,0.00036979,2]
[422021983,1778477457000,-404.77374597,0.00036979,2]
[422021984,1778477457000,-465.69126359,0.00036979,2]
[422021986,1778477457000,-169.8506211,0.00036987,120]
[422021985,1778477457000,-300.12383362,0.00036979,2]
[422021998,1778477457000,-1700.0,0.00036987,120]
[422021997,1778477457000,-1700.0,0.00036987,120]
[422021991,1778477457000,-1700.0,0.00036987,120]
[422021995,1778477457000,-1700.0,0.00036987,120]
[422021996,1778477457000,-1700.0,0.00036987,120]
[422021999,1778477457000,-1700.0,0.00036987,120]
[422021994,1778477457000,-1700.0,0.00036987,120]
[422021989,1778477457000,-1700.0,0.00036987,120]
[422021993,1778477457000,-1700.0,0.00036987,120]
[422022001,1778477457000,-1700.0,0.00036987,120]
[422022000,1778477457000,-1700.0,0.00036987,120]
[422021992,1778477457000,-1700.0,0.00036987,120]
[422022071,1778477458000,-500.0,0.00038356,2]
[422022068,1778477458000,-500.0,0.00038356,2]
[422022066,1778477458000,-2027.9754,0.00038351,2]
[422022069,1778477458000,-500.0,0.00038356,2]
[422022070,1778477458000,-500.0,0.00038356,2]
[422022059,1778477458000,-933.12,0.00038276,60]
[422022067,1778477458000,-500.0,0.00038356,2]
[422022061,1778477458000,-169.64,0.00038279,60]
[422022055,1778477458000,-650.0,0.00038214,2]
[422022057,1778477458000,-17393.0106,0.00038227,30]
[422022072,1778477458000,-500.0,0.00038356,2]
[422022077,1778477458000,-500.0,0.00038356,2]
[422022073,1778477458000,-500.0,0.00038356,2]
[422022087,1778477458000,-500.0,0.00038356,2]
[422022076,1778477458000,-500.0,0.00038356,2]
[422022074,1778477458000,-500.0,0.00038356,2]
[422022079,1778477458000,-500.0,0.00038356,2]
[422022078,1778477458000,-500.0,0.00038356,2]
[422022089,1778477458000,-500.0,0.00038356,2]
[422022082,1778477458000,-500.0,0.00038356,2]
[422022081,1778477458000,-500.0,0.00038356,2]
[422022080,1778477458000,-500.0,0.00038356,2]
[422022090,1778477458000,-500.0,0.00038356,2]
[422022091,1778477458000,-500.0,0.00038356,2]
[422022086,1778477458000,-500.0,0.00038356,2]
[422022083,1778477458000,-500.0,0.00038356,2]
[422022062,1778477458000,-900.0,0.00038288,60]
[422022075,1778477458000,-500.0,0.00038356,2]
[422022060,1778477458000,-151.58,0.00038278,60]
[422022096,1778477458000,-500.0,0.00038356,2]
[422022063,1778477458000,-500.0,0.00038288,60]
[422022084,1778477458000,-200.71687066,0.00038356,2]
[422022037,1778477458000,-46023.39,0.000379,7]
[422022033,1778477458000,-252.71,0.000376,120]
[422022036,1778477458000,-523.31,0.000379,30]
[422022038,1778477458000,-196.49008371,0.00037914,2]
[422022035,1778477458000,-152.94,0.00037808,60]
[422022032,1778477458000,-277.9,0.000376,30]
[422022034,1778477458000,-515.4,0.000377,30]
[422022040,1778477458000,-4926.0,0.00038,2]
[422022051,1778477458000,-157.97454384,0.00038174,5]
[422022041,1778477458000,-2188.0,0.00038,120]
[422022050,1778477458000,-152.0,0.00038174,7]
[422022039,1778477458000,-168.7,0.00037962,7]
[422022046,1778477458000,-200.0,0.00038,15]
[422022049,1778477458000,-775.9,0.00038125,30]
[422022043,1778477458000,-2894.02,0.00038,14]
[422022042,1778477458000,-208.50794478,0.00038,30]
[422022045,1778477458000,-1104.9744,0.00038,2]
[422022048,1778477458000,-362.85262543,0.000381,33]
[422022044,1778477458000,-1254.7903,0.00038,2]
[422022047,1778477458000,-286.5,0.00038014,120]
[422022054,1778477458000,-650.0,0.00038214,2]
[422022056,1778477458000,-557.0,0.00038214,2]
[422022052,1778477458000,-160.0,0.000382,40]
[422022065,1778477458000,-8980.3649,0.00038351,2]
[422022053,1778477458000,-160.0,0.000382,40]
[422022058,1778477458000,-1353.51,0.00038276,60]
[422022064,1778477458000,-507.0,0.00038298,16]
[422022088,1778477458000,-500.0,0.00038356,2]
[422022114,1778477458000,-500.0,0.00038356,2]
[422022093,1778477458000,-500.0,0.00038356,2]
[422022126,1778477458000,-500.0,0.00038356,2]
[422022127,1778477458000,-500.0,0.00038356,2]
[422022125,1778477458000,-500.0,0.00038356,2]
[422022119,1778477458000,-500.0,0.00038356,2]
[422022124,1778477458000,-500.0,0.00038356,2]
[422022129,1778477458000,-500.0,0.00038356,2]
[422022130,1778477458000,-500.0,0.00038356,2]
[422022133,1778477458000,-300.0,0.00038356,2]
[422022131,1778477458000,-300.0,0.00038356,2]
[422022136,1778477458000,-500.0,0.00038356,2]
[422022134,1778477458000,-500.0,0.00038356,2]
[422022135,1778477458000,-300.0,0.00038356,2]
[422022137,1778477458000,-300.0,0.00038356,2]
[422022138,1778477458000,-500.0,0.00038356,2]
[422022141,1778477458000,-300.0,0.00038356,2]
[422022148,1778477458000,-300.0,0.00038356,2]
[422022142,1778477458000,-500.0,0.00038356,2]
[422022139,1778477458000,-300.0,0.00038356,2]
[422022140,1778477458000,-500.0,0.00038356,2]
[422022145,1778477458000,-300.0,0.00038356,2]
[422022146,1778477458000,-500.0,0.00038356,2]
[422022143,1778477458000,-300.0,0.00038356,2]
[422022144,1778477458000,-500.0,0.00038356,2]
[422022147,1778477458000,-300.0,0.00038356,2]
[422022150,1778477458000,-300.0,0.00038356,2]
[422022149,1778477458000,-500.0,0.00038356,2]
[422022085,1778477458000,-500.0,0.00038356,2]
[422022121,1778477458000,-500.0,0.00038356,2]
[422022120,1778477458000,-500.0,0.00038356,2]
[422022132,1778477458000,-500.0,0.00038356,2]
[422022122,1778477458000,-500.0,0.00038356,2]
[422022103,1778477458000,-500.0,0.00038356,2]
[422022123,1778477458000,-500.0,0.00038356,2]
[422022092,1778477458000,-500.0,0.00038356,2]
[422022097,1778477458000,-500.0,0.00038356,2]
[422022102,1778477458000,-500.0,0.00038356,2]
[422022100,1778477458000,-500.0,0.00038356,2]
[422022095,1778477458000,-500.0,0.00038356,2]
[422022101,1778477458000,-500.0,0.00038356,2]
[422022099,1778477458000,-500.0,0.00038356,2]
[422022098,1778477458000,-500.0,0.00038356,2]
[422022152,1778477458000,-300.0,0.00038356,2]
[422022104,1778477458000,-575.20404045,0.00038356,2]
[422022107,1778477458000,-500.0,0.00038356,2]
[422022108,1778477458000,-500.0,0.00038356,2]
[422022094,1778477458000,-500.0,0.00038356,2]
[422022112,1778477458000,-500.0,0.00038356,2]
[422022117,1778477458000,-500.0,0.00038356,2]
[422022109,1778477458000,-506.97378767,0.00038356,2]
[422022118,1778477458000,-500.0,0.00038356,2]
[422022151,1778477458000,-500.0,0.00038356,2]
[422022106,1778477458000,-500.0,0.00038356,2]
[422022116,1778477458000,-286.43391409,0.00038356,2]
[422022128,1778477458000,-500.0,0.00038356,2]
[422022111,1778477458000,-500.0,0.00038356,2]
[422022110,1778477458000,-500.0,0.00038356,2]
[422022105,1778477458000,-500.0,0.00038356,2]
[422022115,1778477458000,-500.0,0.00038356,2]
[422022113,1778477458000,-500.0,0.00038356,2]
[422022195,1778477459000,-212.110717,0.00038356,30]
[422022192,1778477459000,-212.110717,0.00038356,30]
[422022191,1778477459000,-212.110717,0.00038356,30]
[422022190,1778477459000,-212.110717,0.00038356,30]
[422022189,1778477459000,-300.04766141,0.00038356,2]
[422022185,1778477459000,-500.0,0.00038356,2]
[422022182,1778477459000,-500.0,0.00038356,2]
[422022184,1778477459000,-500.0,0.00038356,2]
[422022188,1778477459000,-647.0,0.00038356,120]
[422022201,1778477459000,-212.110717,0.00038356,30]
[422022186,1778477459000,-500.0,0.00038356,2]
[422022204,1778477459000,-212.110717,0.00038356,30]
[422022220,1778477459000,-151.58,0.00038578,120]
[422022205,1778477459000,-212.110717,0.00038356,30]
[422022203,1778477459000,-212.110717,0.00038356,30]
[422022206,1778477459000,-212.110717,0.00038356,30]
[422022194,1778477459000,-212.110717,0.00038356,30]
[422022207,1778477459000,-212.110717,0.00038356,30]
[422022200,1778477459000,-212.110717,0.00038356,30]
[422022199,1778477459000,-212.110717,0.00038356,30]
[422022197,1778477459000,-212.110717,0.00038356,30]
[422022198,1778477459000,-212.110717,0.00038356,30]
[422022196,1778477459000,-212.110717,0.00038356,30]
[422022208,1778477459000,-212.110717,0.00038356,30]
[422022211,1778477459000,-1223.0,0.00038375,2]
[422022187,1778477459000,-504.76088998,0.00038356,2]
[422022202,1778477459000,-212.110717,0.00038356,30]
[422022193,1778477459000,-212.110717,0.00038356,30]
[422022153,1778477459000,-500.0,0.00038356,2]
[422022179,1778477459000,-500.0,0.00038356,2]
[422022210,1778477459000,-1561.0,0.00038356,30]
[422022156,1778477459000,-300.0,0.00038356,2]
[422022154,1778477459000,-300.0,0.00038356,2]
[422022155,1778477459000,-500.0,0.00038356,2]
[422022158,1778477459000,-157.72332695,0.00038356,2]